Cogmind - Beta 17 @@@ ROGUE MODE // 2026.07.14 @ 10:08:41 Player: pinbox Result: Destroyed by ZA-21P(R) with Subdweller Laser Performance ------------- Evolutions (0) 0 Regions Visited (2) 400 Robots Destroyed (13) 65 Value Destroyed (296) 296 Prototype IDs (0) 0 Alien Tech Used (0) 0 Bonus (0) 0 TOTAL SCORE: 761 Bonus ------- None Cogmind --------- Core Integrity 0/250 Matter 274/300 Energy 250/250 System Corruption 0% Temperature Cool (6) Movement Rolling (120) Ox1 Location -10/Subcaves Parts ------- > --- POWER (1) -------- Ion Engine > --- PROPULSION (2) --- Subdweller Monowheel > --- UTILITY (2) ------ Small Storage Unit Large Storage Unit > --- WEAPON (2) ------- Medium Laser Subdweller Machine Gun > --- INVENTORY (15) --- Ion Engine Light Treads Light Treads Light Treads Subdweller Optics Scrap Shield Fragment (48) Peak State ------------ > --- POWER ------------ Ion Engine > --- PROPULSION ------- Light Treads Subdweller Monowheel > --- UTILITY ---------- Small Storage Unit Large Storage Unit > --- WEAPON ----------- Medium Laser Subdweller Machine Gun > --- INVENTORY -------- Ion Engine Light Treads Light Treads Light Treads Subdweller Optics Scrap Shield Fragment [Rating: 9] Favorites ----------- Power Ion Engine Engine Ion Engine Propulsion Light Treads Treads Light Treads Wheel Subdweller Monowheel Utility Small Storage Unit Device Subdweller Optics Storage Small Storage Unit Weapon Medium Laser Energy Gun Medium Laser Ballistic Gun Subdweller Machine Gun Build | -11 -10 -10 ------- Run | Yrd Mat Sub Slots Evolved . | . . . Power . | . . . Propulsion . | . . . Utility . | . . . Weapon . | . . . Parts Attached 15 | 7 5 3 Power 2 | 1 1 . Engine 2 | 1 1 . Core . | . . . Reactor . | . . . Propulsion 5 | 2 2 1 Treads 4 | 2 2 . Leg . | . . . Wheel 1 | . . 1 Hover . | . . . Flight . | . . . Utility 4 | 2 1 1 Device 2 | 1 . 1 Storage 2 | 1 1 . Processor . | . . . Hackware . | . . . Protection . | . . . Artifact . | . . . Weapon 4 | 2 1 1 Energy Gun 3 | 2 1 . Energy Cannon . | . . . Ballistic Gun 1 | . . 1 Ballistic Cannon . | . . . Launcher . | . . . Special Weapon . | . . . Impact Weapon . | . . . Slashing Weapon . | . . . Piercing Weapon . | . . . Special Melee Weapon . | . . . Unidentified Prototypes . | . . . Parts Lost 4 | . 2 2 Power 1 | . 1 . Propulsion 1 | . . 1 Utility 1 | . 1 . Weapon 1 | . . 1 Highest Loss Streak 2 | . 2 2 To Critical Strikes . | . . . Average Backups 2 | . 1 3 Power . | . . 1 Propulsion 1 | . . 2 Utility . | . . . Weapon . | . . . Tool/Special . | . . . Unused Backups 1 | . . 1 Power 1 | . . 1 Propulsion . | . . . Utility . | . . . Weapon . | . . . Tool/Special . | . . . Average Slot Usage (%) 98 | . 97 99 Engine 13 | . 13 14 Treads 27 | . 28 27 Device 6 | . 5 6 Storage 21 | . 20 21 Energy Gun 27 | . 28 27 Peak Build Rating 9 | 7 7 9 Average Rating 7 | 5 6 7 On Entrance 4 | . 7 7 Avg Prop Armor Cover (%) 13 | . . 13 Naked Turns . | . . . Heaviest Build 36 | 13 33 36 Greatest Support 40 | 40 40 40 Greatest Overweight (x) 1 | . . 1 Average Overweight (x) . | . . . Largest Inventory Capacity 15 | 8 15 15 Average Capacity 12 | 7 11 15 Most Carried 6 | 1 3 6 Average Carried 3 | . 1 4 Final Capacity 15 | 8 15 15 Final Carried 6 | 1 3 6 Class Distribution -------------------- 75% | Mutant 24% | Scavenger-Mutant Dominant Class ---------------- Mutant | -10/Materials Mutant | -10/Subcaves Resources | -11 -10 -10 ----------- Run | Yrd Mat Sub Matter Collected 406 | 244 142 20 Remotely . | . . . Salvage Created 390 | 42 297 51 Parts 26 | 6 13 7 Haulers Intercepted 1 | . 1 . Recyclers Shooed . | . . . Parts Field Recycled . | . . . Retrieved Matter . | . . . Parts Self-Destructed 6 | . . 6 Prevented . | . . . Parts Restored . | . . . Kills | -11 -10 -10 ------- Run | Yrd Mat Sub Combat Hostiles Destroyed 10 | . 8 2 Guns 10 | . 8 2 Classes Destroyed 5 | 1 3 1 Tunneler 2 | 2 . . Hauler 1 | . 1 . Swarmer 3 | . 3 . Grunt 5 | . 5 . Subdweller 2 | . . 2 Best Kill Streak 3 | 1 3 2 Combat Bots Only 3 | . 3 2 Max Kills in Single Turn 2 | 1 2 1 Gunslinging 1 | . 1 . Exploded . | . . . Melee . | . . . Uniques/NPCs Destroyed . | . . . Combat | -11 -10 -10 -------- Run | Yrd Mat Sub Hostile Shots Fired 77 | . 48 29 Missed 19 | . 7 12 Hits 58 | . 41 17 Projectile 58 | . 41 17 AOE 6 | . . 6 Damage Taken 1045 | . 421 624 Core 252 | . 42 210 Absorbed by Shields . | . . . Core Remaining (%) 100 | 100 . . Volleys Fired 36 | 3 25 8 Largest 2 | 2 2 2 Hottest 100 | 100 100 90 Shots Fired 70 | 6 49 15 Gun 70 | 6 49 15 Cannon . | . . . Launcher . | . . . Special . | . . . Kinetic 3 | . . 3 Thermal 67 | 6 49 12 Explosive . | . . . Electromagnetic . | . . . Robot Hit Streak 10 | 4 8 10 Robot Miss Streak 2 | 1 2 1 Penetration Max . | . . . Secondary Targets 2 | . 2 . Max Gunslinging Chain 1 | . 1 . Shots Hit Robots 50 | 4 33 13 Core Hits 23 | 2 15 6 Critical Kills . | . . . Critical Parts Destroyed . | . . . Critical Strikes 4 | . 3 1 Burn 4 | . 3 1 Melee Attacks . | . . . Impact . | . . . Slashing . | . . . Piercing . | . . . Sneak Attacks . | . . . Combat Hostiles . | . . . Follow-up Attacks . | . . . Damage Inflicted 707 | 50 469 188 Guns 707 | 50 469 188 Cannons . | . . . Explosions . | . . . Melee . | . . . Ramming . | . . . Kinetic 55 | . . 55 Thermal 652 | 50 469 133 Explosive . | . . . Electromagnetic . | . . . Impact . | . . . Slashing . | . . . Piercing . | . . . Highest Corruption . | . . . Average Corruption . | . . . Corruption Purged . | . . . Corruption Blocked . | . . . Overload Shots . | . . . Overflow Damage . | . . . Projectiles . | . . . Explosions . | . . . Melee . | . . . Knockbacks . | . . . Impact . | . . . Kinetic . | . . . Secondary . | . . . Self-Inflicted Damage . | . . . Shots . | . . . Rammed . | . . . Targets Rammed . | . . . Kicked . | . . . Crushed . | . . . Highest Temperature 500 | 78 500 . Average Temperature 177 | 33 194 . Received Heat Transfer 222 | . 198 24 Effects 8 | . 8 . Shutdowns 2 | . 2 . Matter Decay 1 | . 1 . Short Circuit 1 | . 1 . Damage (minor) 1 | . 1 . Damage (major) 3 | . 3 . Siege Activations . | . . . Martial Activations . | . . . Shielding Activations . | . . . Robots Disrupted . | . . . Combat Hostiles . | . . . Robots Corrupted . | . . . Combat Hostiles . | . . . Parts Fried . | . . . Impact Corruptions . | . . . Robots Melted . | . . . Combat Hostiles . | . . . Parts Melted 8 | . 8 . Heat Transferred 2197 | 148 1604 445 Parts Sabotaged . | . . . Parts Stolen . | . . . Parts Stripped . | . . . Power Chain Reactions . | . . . Alert | -11 -10 -10 ------- Run | Yrd Mat Sub Maximum Alert Level . | . . . Low Security (%) 100 | 100 100 . Level 1 . | . . . Level 2 . | . . . Level 3 . | . . . Level 4 . | . . . Level 5 . | . . . High Security . | . . . Max Security . | . . . Peak Influence 126 | 5 126 . Initial . | . . . Average 55 | . 70 . Influence Increases 228 | 10 218 . Destroy 0b10 Robot/C 160 | . 160 . Destroy 0b10 Robot/NC 15 | 10 5 . Destroy Leader 32 | . 32 . Successful Hack 21 | . 21 . Influence Decreases 228 | 10 195 23 Entered New Map 12 | . . 12 Time Decay 196 | 10 175 11 Lost Part 20 | . 20 . Squads Dispatched 2 | . 2 . Investigation . | . . . Extermination . | . . . Reinforcement 2 | . 2 . Assault . | . . . Garrison . | . . . Intercept . | . . . Searches Triggered . | . . . Construction Impeded . | . . . Haulers Reinforced . | . . . Active Scanning Responses . | . . . Cargo Convoy Interrupts . | . . . Stealth | -11 -10 -10 --------- Run | Yrd Mat Sub Distress Signals 1 | . 1 . Communications Jammed . | . . . Distress Signals . | . . . Times Spotted 17 | . 10 7 Peak Tracking Total 3 | . 3 3 Tactical Retreats 1 | . . 1 Traps | -11 -10 -10 ------- Run | Yrd Mat Sub Traps Triggered . | . . . Indirectly . | . . . Trap Hack Attempts . | . . . Triggered . | . . . Disarmed . | . . . Reprogrammed . | . . . Reused . | . . . Traps Extracted . | . . . Installed . | . . . Triggered . | . . . Machines | -11 -10 -10 ---------- Run | Yrd Mat Sub Machines Disabled . | . . . Max in Single Turn . | . . . Machines Repaired . | . . . Machines Dismantled . | . . . Machines Sabotaged . | . . . Overloaded Fab Kills . | . . . Hacking | -11 -10 -10 --------- Run | Yrd Mat Sub Machines Accessed 3 | . 3 . Terminals 3 | . 3 . Fabricators . | . . . Repair Stations . | . . . Recycling Units . | . . . Scanalyzers . | . . . Garrison Access . | . . . Total Hacks 9 | . 9 . Successful 3 | . 3 . Failed 6 | . 6 . Catastrophic 3 | . 3 . Database Lockouts . | . . . Manual 8 | . 8 . Terminals 9 | . 9 . Fabricators . | . . . Repair Stations . | . . . Recycling Units . | . . . Scanalyzers . | . . . Garrison Access . | . . . Terminal Hacks . | . . . Fabricator Hacks . | . . . Repair Station Hacks . | . . . Recycling Unit Hacks . | . . . Scanalyzer . | . . . Garrison Access Hacks . | . . . Unauthorized Hacks 3 | . 3 . Terminals 3 | . 3 . Botnet 3 | . 3 . Fabricators . | . . . Repair Stations . | . . . Recycling Units . | . . . Scanalyzers . | . . . Garrison Access . | . . . Data Cores Recovered . | . . . Used . | . . . Hacking Detections 3 | . 3 . Full Trace Events . | . . . Feedback Events . | . . . Feedback Blocked . | . . . Robot Schematics Acquired . | . . . Robots Built . | . . . Authchips . | . . . Time . | . . . Total Robot Build Rating . | . . . Part Schematics Acquired . | . . . Parts Built . | . . . Authchips . | . . . Time . | . . . Total Part Build Rating . | . . . Part Studies Acquired . | . . . Parts Repaired . | . . . Time . | . . . Parts Recycled . | . . . Recycled Matter . | . . . Retrieved Matter . | . . . Retrieved Components . | . . . Parts Scanalyzed . | . . . Part Schematics Acquired . | . . . Parts Damaged . | . . . Bothacking | -11 -10 -10 ------------ Run | Yrd Mat Sub Used RIF Installer . | . . . Robots Hacked . | . . . Non-combat . | . . . Combat . | . . . Robot Hacks Applied . | . . . Relay Couplers Released . | . . . Fabnet Peak Effective % . | . . . Robots Rewired . | . . . Allies Hacked . | . . . Hacks Repelled . | . . . Allies | -11 -10 -10 -------- Run | Yrd Mat Sub Total Allies . | . . . Largest Group . | . . . Highest-Rated Group . | . . . Highest-Rated Ally . | . . . Total Orders . | . . . Ally Attacks . | . . . Total Damage . | . . . Kills . | . . . Allies Corrupted . | . . . Allies Melted . | . . . Intel | -11 -10 -10 ------- Run | Yrd Mat Sub Active Infowar (turns) 399 | 13 139 247 Optics 247 | . . 247 Seismic 152 | 13 139 . Robot Analysis Total . | . . . Derelict Logs Recovered 1 | . . 1 Drone Launches . | . . . Drone Recoveries . | . . . Exploration | -11 -10 -10 ------------- Run | Yrd Mat Sub Turns Passed 979 | 96 363 520 Spaces Moved 395 | 54 102 239 Core 9 | 9 . . Treads 382 | 45 102 235 Legs . | . . . Wheels 4 | . . 4 Hover . | . . . Flight . | . . . Fastest Speed 50 | 50 160 120 Average Speed 157 | 141 160 159 Slowest Speed 160 | 160 160 160 Overloaded Moves . | . . . Propulsion Burnouts . | . . . Robots Hopped . | . . . Potential Cave-ins . | . . . Cave-ins Triggered . | . . . Exploration Rate (%) 16 | 3 26 20 Regions Visited 2 Branch Regions 1 Pre-discovered Areas 1 | . . 1 Known Exits Taken . | . . . Unknown Exits Taken 2 | 1 1 . Scrap Searched . | . . . Spaces Dug . | . . . Terrain Destroyed . | . . . Melee . | . . . Projectile . | . . . AOE . | . . . Terrain Rammed . | . . . Walls Destroyed . | . . . Machines Disabled . | . . . Actions | -11 -10 -10 --------- Run | Yrd Mat Sub Total 680 | 64 252 364 Wait 224 | . 118 106 Move 393 | 53 101 239 Hop . | . . . Pick Up 3 | 1 1 1 Fast Attach 13 | 7 2 4 Attach 2 | . 1 1 Detach 5 | . 1 4 Swap 2 | . 2 . Drop 2 | . 1 1 Fire 36 | 3 25 8 Melee . | . . . Ram . | . . . Kick . | . . . Crush . | . . . Escape Stasis . | . . . Rewire . | . . . Trap . | . . . Miscellaneous . | . . . Route ------- -11/Scrapyard -10/Materials (discovered 2 exits: [*Mat] / [*Sub]) -10/Subcaves History --------- Turn | Location | Event 5 | -11/Scrapyard | Discovered new exit (range 15) 97 | -11/Scrapyard | Entered Materials 312 | -10/Materials | Build established: Mutant 326 | -10/Materials | Discovered new exit (range 16) 440 | -10/Materials | Discovered new exit (range 9) 460 | -10/Materials | Entered Subcaves 826 | -10/Subcaves | Learned location of Zion (-7) 826 | -10/Subcaves | Met a Zionite searching for "candidates" 916 | -10/Subcaves | Ambushed by Subdweller buried in earth 925 | -10/Subcaves | Core integrity fell below 50% 971 | -10/Subcaves | Ambushed by Subdweller buried in earth 972 | -10/Subcaves | Core integrity fell below 20% 980 | -10/Subcaves | Destroyed by ZA-21P(R) with Subdweller Laser Last Messages --------------- at any moment. For your health and safety might I suggest a trip to Zion?" World map updated: -7/Zion. 00887_ Sub. Optics shoots sparks and powers down. 00917_ 6D-8S5(R): "FREEEEDUMB!" 00950_ I7-1IQ(R) destroyed. 00954_ 6D-8S5(R) affixes Scrap Shield Fragment to Scrap Shield. 00955_ Sml. Laser destroyed. 00956_ 6D-8S5(R) destroyed. 00961_ Acquired Sub. Machine Gun. 00965_ Acquired Sub. Monowheel. 00971_ B6-8YK(R) destroyed. 00972_ ZA-21P(R): "NOSTUCKSUB!" 00972_ GX-5ZR(R): "HIDIE!" 00972_ Lgt. Treads destroyed. 00978_ ZA-21P(R) suffers critical hit (Burn). 00979_ ZA-21P(R) affixes Scrap Shield Fragment to Scrap Shield. Map ----- +----------------------------------------------------+ | ???????????????????????????????????????????????? | | ???????????????????????????????????????????????? | | ???????????????????????????????????????????????? | | ???????????????????????????????????????????????? | | ???????????????????????????????????????????????? | | ???????????????????????????????????????????????? | | ??????????????????????????????##???????????????? | | ?????????????????????##??#####"####????????????? | | ????????????????????## ###"""" " #????????????? | | ????????????????????# " " "#????????????? | | ?????????????? ]##### "#????????????? | | ?????????????? "#????????????? | | ?????????????????# " #????????????? | | ?????????????????# #????????????? | | ????????????????## #????????????? | | ???????????????## #????????????? | | ???????????????# ###????????????? | | ???????????????### #??????????????? | | ?????????????????##### ##??????????????? | | ?????????????????????## ##???????????????? | | ??????????????????????## # ##???????????????? | | ????????????????????####### #???????????????? | | ????????????????????# ## ##???????????????? | | ????????????????????# ;;;;## ##???????????????? | | ????????????????????# ;R ;## ##??????????????? | | ????????????????????# ; @;# #??????????????? | | ???????????????##???# ; &%! ##??????????????? | | ???????????????# #??##;;&!%&& #???????????????? | | ?????????? ???# ##?### =&R* ##??????????????? | | ?????????%% ??# ??# & #??????????????? | | ?????????%% ?? ??# #??????????????? | | ?????????# ??# ###% ## ##??????????????? | | ??????????# ## % ##???????????????? | | ??????????# % #????????????????? | | ??????????## ## #????????????????? | | ???????# ## ##???????????????? | | ?????? ##??????????????? | | ?????? #??????????????? | | ?????????# ### # ## ######?????????? | | ?????????????## ## # #?????????? | | ??????????????# #### ## # #?????????? | | ?????????????# ??## ### #?????????? | | ????????????# ???# #?# # #?????????? | | ????????????## ?????### #### ######?????????? | | ???????????????????????## #?# #??????????????? | | ???????????????????????## #?# #??????????????? | | ????????????????????#### #?## #??????????????? | | ????????????????????# #??###??????????????? | | ????????????????????# ##???????????????????? | | ????????????????????## #####?????????????????? | +----------------------------------------------------+ Best States ------------- Heat Dissipation 25 Energy Generation 10 Energy Capacity 250 Matter Stores 300 Matter Capacity 300 Sight Range 21 Terrain Scan Density 10 Evasion (%) 40 Recoil Reduction 2 Item Schematics ----------------- None Robot Schematics ------------------ None Fabricated ------------ Nothing Repaired ---------- Nothing Studied --------- None Alien Tech Used ----------------- None Achievements -------------- None Challenges ------------ None Game ------ Seed PlexusHoverSteel Manual? 0 Play Time 00:07:10 Cumulative 50.4 hours Start 2026.07.14 @ 10:03:29 End 2026.07.14 @ 10:08:41 Sessions 1 Manual Loads 0 Difficulty Rogue Special Mode None Game No. 56 Rogue 56 Adventurer 0 Explorer 0 Win Type - Total 1 Types 1/0/0/0/0/0/0/0/0/0 Lore% 47 Gallery% 37 Achievement% 34 Wizard Run 0 Options --------- Layout 1 ASCII 0 Keyboard 1 Movement Numpad Keybinds 1 Fullscreen 2 Font 24/Smallcaps Map View 50x40 Zoom Use 0% Tactical HUD 1 Map Filters NONE Filters NONE Steam 1 RUN: d08f0942-0e74-4192-a84c-4648cf00c953